bitfinex/quotes_SOLUSD_20250118
["timestamp","ask_amount","ask_price","bid_price","bid_amount"]
[1737214469071,36.72144503,249.6,249.15,21.38074196]
[1737214469072,22.19904503,249.37,249.25,22.19904503]
[1737214469258,22.19904503,249.34,249.26,0.6015481]
[1737214469467,22.19904503,249.3,249.17,22.80065135]
[1737214469765,22.19904503,249.28,249.17,0.60160632]
[1737214469969,22.19904503,249.26,249.17,0.60160632]
[1737214470184,6.0286,249.46,249.17,0.60160632]
[1737214470185,6.0286,249.46,249.18,22.19904503]
[1737214470385,22.19904503,249.37,249.26,22.19904503]
[1737214470543,22.19904503,249.49,249.36,42.19904503]
[1737214470750,4.0075,249.54,249.37,0.60129079]
[1737214470977,22.19904503,249.46,249.37,0.60129079]
[1737214471267,22.19904503,249.44,249.37,0.60129079]
[1737214471463,22.19904503,249.4,249.33,0.60142238]
[1737214471663,22.19904503,249.38,249.29,0.60149081]
[1737214472059,0.60150885,249.53,249.33,22.19904503]
[1737214472277,22.19904503,249.47,249.35,22.19904503]
[1737214472448,22.19904503,249.45,249.36,0.60133935]
[1737214472849,22.19904503,249.45,249.34,0.60137847]
[1737214473151,0.60150885,249.51,249.34,20.60137847]
[1737214473456,22.19904503,249.36,249.24,22.19904503]
[1737214473656,22.19904503,249.32,249.25,0.60163809]
[1737214473864,22.19904503,249.28,249.21,0.60165925]
[1737214474056,22.19904503,249.28,249.17,0.60178285]
[1737214474365,22.19904503,249.24,249.17,0.60178285]
[1737214474670,22.19904503,249.22,249.12,0.6019071]
[1737214475256,0.60150885,249.29,249.17,22.19904503]
[1737214475570,22.19904503,249.32,249.21,22.19904503]
[1737214475873,22.19904503,249.27,249.22,0.60176455]
[1737214476068,22.19904503,249.27,249.17,0.60174666]
[1737214476261,22.19904503,249.29,249.21,20.0]
[1737214476468,22.19904503,249.27,249.22,0.60170855]
[1737214476670,22.19904503,249.25,249.16,0.60174697]
[1737214476857,22.19904503,249.23,249.16,0.60174697]
[1737214477265,22.19904503,249.21,249.14,0.60181174]
[1737214477484,22.19904503,249.19,249.1,0.60187083]
[1737214477858,0.60150885,249.29,249.11,22.19904503]
[1737214478060,22.19904503,249.22,249.12,0.60183742]
[1737214478274,0.60150885,249.31,249.16,22.19904503]
[1737214478580,22.19904503,249.25,249.17,0.60167588]
[1737214478761,34.68060885,249.42,248.93,16.048587]
[1737214478762,34.68060885,249.42,249.03,0.60183203]
[1737214478956,22.19904503,249.27,249.19,20.0]
[1737214479164,22.19904503,249.32,249.2,22.80078936]
[1737214479360,22.19904503,249.3,249.23,20.0]
[1737214479562,22.19904503,249.3,249.24,0.60169744]
[1737214479776,22.19904503,249.32,249.24,0.60169744]
[1737214480286,22.19904503,249.3,249.24,0.60169744]
[1737214480583,22.19904503,249.3,249.21,20.0]
[1737214480873,22.19904503,249.22,249.06,0.60171122]
[1737214481080,22.19904503,249.22,249.1,22.19904503]
[1737214481275,22.19904503,249.26,249.15,22.19904503]
[1737214481473,0.60150885,249.35,249.23,22.19904503]
[1737214481678,22.19904503,249.47,249.37,20.0]
[1737214481875,22.19904503,249.45,249.38,0.6014079]
[1737214482180,22.19904503,249.39,249.33,0.60136408]
[1737214482365,22.19904503,249.37,249.29,0.60152544]
[1737214482567,26.20914503,249.37,249.28,20.0]
[1737214482775,26.20914503,249.37,249.29,0.60152648]
[1737214482969,22.19904503,249.33,249.29,0.60152648]
[1737214483171,0.60150885,249.53,249.32,22.19904503]
[1737214483377,4.0065,249.59,249.47,22.19904503]
[1737214483581,0.60150885,249.58,249.48,0.60112396]
[1737214483884,22.80055388,249.58,249.45,22.19904503]
[1737214484074,22.80055388,249.58,249.46,0.6011887]
[1737214484275,22.19904503,249.56,249.46,0.6011887]
[1737214484575,22.19904503,249.52,249.41,22.19904503]
[1737214484766,4.0073,249.54,249.45,22.19904503]
[1737214484966,4.0073,249.54,249.46,0.60114273]
[1737214485579,26.20634503,249.54,249.44,0.60113496]
[1737214485783,4.0073,249.54,249.44,0.60113496]
[1737214485974,22.19904503,249.52,249.4,22.19904503]
[1737214486281,22.19904503,249.5,249.41,0.60127816]
[1737214486480,0.60150885,249.59,249.49,20.0]
[1737214486687,22.19904503,249.58,249.5,0.60098203]
[1737214486879,22.19904503,249.56,249.48,0.60111558]
[1737214487073,22.19904503,249.53,249.43,22.19904503]
[1737214487271,22.19904503,249.53,249.44,0.60124039]
[1737214487583,22.19904503,249.51,249.39,22.19904503]
[1737214487788,22.19904503,249.49,249.4,0.60127809]
[1737214487985,22.19904503,249.41,249.31,0.60128201]
[1737214488296,22.19904503,249.42,249.32,0.60144154]
[1737214488883,14.028,249.5,249.03,12.09]
[1737214488884,0.75174146,249.41,249.03,12.09]
[1737214489182,22.19904503,249.33,249.22,22.26204503]
[1737214489374,22.19904503,249.35,249.24,22.19904503]
[1737214489582,22.19904503,249.33,249.25,0.30105594]
[1737214490599,22.19904503,249.35,249.25,0.30105594]
[1737214490769,4.0094,249.41,249.29,20.0]
[1737214491084,22.19904503,249.35,249.3,0.30080935]
[1737214491301,22.95090413,249.45,249.3,0.30080935]
[1737214491302,0.7518591,249.45,249.31,22.19904503]
[1737214491505,0.5,249.6,249.3,0.30080935]
[1737214491506,22.19904503,249.51,249.41,22.19904503]
[1737214491705,22.19904503,249.51,249.42,0.29991887]
[1737214491994,14.0235,249.58,249.42,0.29991887]
[1737214492195,22.19904503,249.52,249.47,20.0]
[1737214492396,22.19904503,249.56,249.48,0.29971275]
[1737214493086,22.19904503,249.54,249.48,0.29971275]
[1737214494292,4.5064,249.6,249.48,0.29971275]
[1737214494482,22.19904503,249.52,249.48,0.29971275]
[1737214494687,22.19904503,249.5,249.43,0.29978039]
[1737214494888,22.19904503,249.5,249.37,22.19904503]
[1737214494889,22.19904503,249.47,249.38,0.30006531]
[1737214495083,22.19904503,249.47,249.4,20.0]
[1737214495287,0.75124909,249.59,249.41,0.30007399]
[1737214495597,22.69904503,249.6,249.48,22.19904503]
[1737214495788,22.19904503,249.56,249.49,0.29935458]
[1737214496088,22.19904503,249.54,249.49,0.29935458]
[1737214496302,22.19904503,249.56,249.45,0.29968119]
[1737214496775,22.19904503,249.58,249.46,22.19904503]
[1737214496970,22.19904503,249.54,249.47,0.29948605]
[1737214497175,22.19904503,249.5,249.43,0.29983783]
[1737214497393,22.19904503,249.52,249.43,0.29983783]
[1737214497594,22.19904503,249.5,249.43,0.29983783]
[1737214497797,22.19904503,249.52,249.43,0.29983783]
[1737214498295,22.19904503,249.52,249.44,0.29984235]
[1737214498496,22.19904503,249.5,249.41,0.29980235]
[1737214498906,22.19904503,249.46,249.41,0.29980235]
[1737214499199,22.19904503,249.42,249.35,0.3002619]
[1737214499398,22.19904503,249.37,249.33,0.30035377]
[1737214499591,22.19904503,249.34,249.26,0.30081264]
[1737214499789,22.19904503,249.36,249.26,0.30081264]
[1737214500103,22.19904503,249.38,249.28,22.19904503]
[1737214500279,22.19904503,249.38,249.29,0.30057379]
[1737214500600,22.19904503,249.44,249.34,22.19904503]
[1737214500805,22.19904503,249.44,249.37,20.0]
[1737214500990,22.19904503,249.44,249.38,0.30014752]
[1737214501401,22.19904503,249.48,249.38,0.30014752]
[1737214501582,22.19904503,249.48,249.39,20.0]
[1737214501783,22.19904503,249.46,249.4,0.29995727]
[1737214502496,22.19904503,249.48,249.41,20.0]
[1737214502806,22.19904503,249.48,249.42,0.2999776]
[1737214503394,22.19904503,249.5,249.41,20.0]
[1737214503601,22.19904503,249.48,249.42,0.29976548]
[1737214503899,22.19904503,249.5,249.42,0.29976548]
[1737214504106,22.19904503,249.5,249.43,20.0]
[1737214504300,22.19904503,249.5,249.44,0.29970477]
[1737214504989,22.19904503,249.52,249.45,20.0]
[1737214505211,22.19904503,249.52,249.46,0.29968637]
[1737214505390,22.19904503,249.55,249.46,0.29968637]
[1737214505597,22.19904503,249.53,249.43,22.19904503]
[1737214505805,22.19904503,249.53,249.44,0.29970181]
[1737214506004,22.19904503,249.53,249.44,20.29970181]
[1737214506186,22.19904503,249.46,249.33,22.19904503]
[1737214506394,22.19904503,249.4,249.34,0.30039312]
[1737214506591,22.19904503,249.4,249.29,0.30054228]
[1737214506884,22.19904503,249.4,249.3,22.19904503]
[1737214507090,22.19904503,249.38,249.31,0.30061779]
[1737214507290,22.19904503,249.32,249.29,0.3007045]
[1737214507500,8.1332,249.43,249.22,0.063]
[1737214507501,22.19904503,249.29,249.22,0.063]
[1737214507700,22.19904503,249.24,249.22,0.063]
[1737214507898,0.75228971,249.23,249.22,0.063]
[1737214508287,8.1332,249.22,249.11,16.036361]
[1737214508493,8.1332,249.22,248.97,0.063]
[1737214508494,26.21314503,249.12,248.97,0.063]
[1737214508794,22.19904503,249.14,249.04,22.19904503]
[1737214508988,22.19904503,249.14,248.98,0.18888348]
[1737214508989,22.19904503,249.12,248.97,0.063]
[1737214509316,22.19904503,249.08,248.99,22.19904503]
[1737214509608,0.75265558,249.24,249.07,22.19904503]
[1737214509806,0.75265558,249.24,249.09,22.19904503]
[1737214510014,22.19904503,249.18,249.07,22.19904503]
[1737214510236,0.75249615,249.37,249.15,22.19904503]
[1737214510513,22.19904503,249.22,249.11,22.19904503]
[1737214511003,22.19904503,249.2,249.09,22.19904503]
[1737214511384,22.19904503,249.13,248.97,0.063]
[1737214511581,22.19904503,249.13,249.02,22.19904503]
[1737214512009,22.19904503,249.11,249.0,22.19904503]
[1737214512187,22.19904503,249.07,248.97,0.063]
[1737214512387,22.19904503,249.05,248.97,0.063]
[1737214512895,22.19904503,249.01,248.97,0.063]
[1737214513405,22.19904503,249.04,248.97,0.063]
[1737214513611,22.19904503,249.06,248.97,22.26204503]
[1737214513794,0.75301426,249.12,248.97,22.26204503]
[1737214513795,22.19904503,249.07,248.97,22.26204503]
[1737214513989,22.19904503,249.05,248.97,0.063]
[1737214515106,4.0149,249.08,248.97,22.26204503]
[1737214515313,26.21374503,249.09,249.02,20.0]
[1737214515613,22.19904503,249.14,249.04,42.19904503]
[1737214515901,6.5824,249.25,248.97,0.063]
[1737214515902,22.19904503,249.15,249.06,22.19904503]
[1737214516107,22.19904503,249.11,249.01,22.19904503]
[1737214516294,22.19904503,249.05,248.97,0.063]
[1737214516489,22.19904503,249.07,248.98,22.19904503]
[1737214516693,22.19904503,249.07,248.97,0.063]
[1737214516694,4.015,249.06,249.01,20.0]
[1737214516896,0.75285615,249.06,248.99,20.0]
[1737214517188,22.95197598,249.06,248.97,0.063]
[1737214517398,22.19904503,249.1,249.0,22.19904503]
[1737214517705,4.0143,249.11,249.02,21.69904503]
[1737214517906,4.0143,249.11,249.05,20.0]
[1737214518204,22.19904503,249.1,249.03,20.0]
[1737214518506,4.0143,249.11,249.03,20.0]
[1737214518507,22.19904503,249.08,249.03,20.0]
[1737214518697,22.95190351,249.08,248.98,22.19904503]
[1737214518895,4.76776459,249.07,248.98,22.19904503]
[1737214519395,22.19904503,249.06,248.97,0.063]
[1737214519696,22.19904503,249.04,248.97,0.063]
[1737214519890,22.19904503,249.06,248.97,0.063]
[1737214520089,22.95192145,249.06,248.97,0.063]
[1737214520308,22.19904503,249.04,248.97,0.063]
[1737214520507,0.75300421,249.03,248.97,0.063]
[1737214520807,22.19904503,249.02,248.97,0.063]
[1737214521006,22.19904503,248.98,248.97,0.063]
[1737214521189,22.19904503,248.98,248.97,0.0001]
[1737214521387,4.76902,249.01,248.97,0.0001]
[1737214521810,22.19904503,248.98,248.88,22.19904503]
[1737214522005,0.7532975,248.97,248.88,22.19904503]
[1737214522209,22.19904503,248.96,248.86,22.19904503]
[1737214522414,22.19904503,248.87,248.8,0.063]
[1737214522609,22.19904503,248.93,248.83,22.19904503]
[1737214522793,22.19904503,248.95,248.85,22.19904503]
[1737214522994,4.0171,248.93,248.85,22.19904503]
[1737214523205,0.75332903,248.94,248.89,22.19904503]
[1737214523401,4.0162,248.99,248.91,22.19904503]
[1737214523598,0.7531184,248.98,248.89,22.19904503]
[1737214523908,23.82354503,249.05,248.96,20.0]
[1737214524113,0.75304649,249.04,248.95,22.19904503]
[1737214524416,26.21464503,249.03,248.96,20.0]
[1737214524719,22.19904503,249.01,248.91,22.19904503]
[1737214525026,22.19904503,249.01,248.8,0.063]
[1737214525027,26.21524503,248.99,248.89,22.19904503]
[1737214525194,0.75327758,248.98,248.89,22.19904503]
[1737214525394,22.19904503,248.97,248.87,22.19904503]
[1737214525712,0.75328093,248.98,248.87,22.19904503]
[1737214526104,4.0165,248.97,248.87,22.19904503]
[1737214526302,4.0165,248.97,248.89,22.19904503]
[1737214526303,0.75324522,248.96,248.89,22.19904503]
[1737214526611,0.7532198,248.98,248.91,22.19904503]
[1737214526824,22.19904503,248.99,248.89,22.19904503]
[1737214526993,0.75317578,248.98,248.8,0.063]
[1737214527199,22.19904503,248.93,248.83,22.19904503]
[1737214527533,22.19904503,248.98,248.88,22.19904503]
[1737214527818,22.19904503,248.96,248.86,22.19904503]
[1737214528020,22.19904503,248.96,248.8,0.063]
[1737214528021,22.19904503,248.94,248.84,22.19904503]
[1737214528224,4.0173,248.92,248.84,22.19904503]
[1737214528427,22.19904503,248.9,248.81,22.19904503]
[1737214528623,4.0173,248.92,248.83,22.19904503]
[1737214528812,0.75334348,248.91,248.82,22.19904503]
[1737214529121,22.19904503,248.9,248.8,22.26204503]
[1737214529312,22.19904503,248.88,248.8,0.063]
[1737214529501,0.7535555,248.87,248.8,0.063]
[1737214530012,0.75353283,248.91,248.82,22.19904503]
[1737214530322,0.75348226,248.91,248.82,22.19904503]
[1737214530522,22.95252729,248.91,248.82,22.19904503]
[1737214531012,22.19904503,248.84,248.8,0.063]
[1737214531224,22.95281626,248.83,248.8,0.063]
[1737214531418,0.75377123,248.83,248.8,0.063]
[1737214531618,0.75366225,248.96,248.81,22.19904503]
[1737214531800,22.19904503,248.9,248.81,22.19904503]
[1737214531996,22.19904503,248.9,248.8,0.063]
[1737214531997,0.7535714,248.89,248.8,0.063]
[1737214532219,4.018,248.88,248.8,0.063]
[1737214532423,0.75356225,248.87,248.8,0.063]
[1737214532930,22.19904503,248.86,248.8,0.063]
[1737214533103,22.19904503,248.84,248.8,0.063]
[1737214533302,0.75365952,248.83,248.8,0.063]
[1737214533727,0.75111936,248.85,248.8,0.063]
[1737214533923,22.19904503,248.84,248.8,0.063]
[1737214534232,4.0189,248.82,248.8,0.063]
[1737214534424,0.75371161,248.81,248.8,0.063]
[1737214534603,0.75371161,248.81,248.68,22.19904503]
[1737214534803,22.19904503,248.78,248.68,22.19904503]
[1737214535019,0.7539012,248.77,248.68,22.19904503]
[1737214535423,22.19904503,248.76,248.66,22.19904503]
[1737214535623,0.75391798,248.75,248.66,22.19904503]
[1737214536011,0.75391798,248.75,248.68,22.19904503]
[1737214536199,0.75393753,248.81,248.73,22.19904503]
[1737214536405,22.19904503,248.8,248.71,22.19904503]
[1737214536705,0.75379096,248.79,248.69,22.19904503]
[1737214537122,22.19904503,248.78,248.69,22.19904503]
[1737214537308,0.75386265,248.79,248.71,22.19904503]
[1737214537515,22.95290768,248.79,248.71,22.19904503]
[1737214537717,22.95290768,248.79,248.69,22.19904503]
[1737214538015,0.75379583,248.78,248.71,22.19904503]
[1737214538322,26.21844503,248.79,248.69,22.19904503]
[1737214538526,0.75381031,248.78,248.69,22.19904503]
[1737214538826,1.6284,248.82,248.73,22.19904503]
[1737214539026,22.19904503,248.78,248.65,0.063]
[1737214539222,0.75401827,248.77,248.71,22.19904503]
[1737214539529,22.19904503,248.77,248.67,22.19904503]
[1737214539826,0.7539602,248.76,248.67,22.19904503]
[1737214540028,22.19904503,248.76,248.65,22.26204503]
[1737214540241,22.19904503,248.73,248.65,0.063]
[1737214540523,4.77461531,248.72,248.65,0.063]
[1737214540721,22.19904503,248.71,248.65,0.063]
[1737214540923,22.19904503,248.68,248.65,0.063]
[1737214541223,0.75420321,248.67,248.65,0.063]
[1737214542627,0.75415764,248.68,248.65,0.063]
[1737214543023,4.77545764,248.68,248.65,0.063]
[1737214543222,0.75415764,248.68,248.65,0.063]
[1737214544129,0.75418391,248.71,248.66,22.19904503]
[1737214544430,0.75397868,248.75,248.66,22.19904503]
[1737214545115,4.77407868,248.75,248.66,22.19904503]
[1737214545314,4.77407868,248.75,248.65,0.063]
[1737214545315,22.19904503,248.74,248.65,0.063]
[1737214545514,4.77407868,248.75,248.65,0.063]
[1737214545515,0.75404441,248.77,248.7,22.19904503]
[1737214545909,43.4,248.79,248.65,0.063]
[1737214545910,0.75380054,248.78,248.72,22.19904503]
[1737214546437,43.4,248.79,248.65,0.063]
[1737214546438,43.4,248.79,248.76,22.19904503]
[1737214547230,42.9,248.79,248.76,22.19904503]
[1737214547614,42.9,248.79,248.78,22.19904503]
[1737214548111,0.75363481,248.85,248.78,22.19904503]
[1737214548306,0.75363481,248.85,248.8,22.19904503]
[1737214548622,1.5228,248.94,248.84,22.19904503]
[1737214548816,2.27619718,248.94,248.86,22.19904503]
[1737214549017,22.19904503,248.93,248.84,22.19904503]
[1737214549218,0.75346292,248.92,248.84,22.19904503]
[1737214549416,25.49625719,248.95,248.84,22.19904503]
[1737214549617,0.75134593,248.94,248.84,22.19904503]
[1737214549923,22.19904503,248.85,248.74,22.19904503]
[1737214550132,0.75134593,248.84,248.74,22.19904503]
[1737214551039,0.75134593,248.84,248.76,22.19904503]
[1737214551244,22.19904503,248.8,248.69,22.19904503]
[1737214551439,22.19904503,248.77,248.67,22.19904503]
[1737214551611,0.75134593,248.76,248.68,0.60309328]
[1737214551808,0.75134593,248.78,248.67,22.19904503]
[1737214552012,22.19904503,248.77,248.67,22.19904503]
[1737214552241,0.75134593,248.76,248.65,22.26204503]
[1737214552618,22.19904503,248.73,248.65,0.063]
[1737214552821,0.75134593,248.72,248.65,0.063]
[1737214553432,0.75134593,248.72,248.63,16.76204503]
[1737214555436,4.77194593,248.72,248.63,16.76204503]
[1737214555634,4.77194593,248.72,248.62,22.19904503]
[1737214555931,22.19904503,248.7,248.6,22.19904503]
[1737214556230,22.19904503,248.68,248.58,22.19904503]
[1737214556428,22.95039096,248.67,248.58,22.19904503]
[1737214556632,0.75134593,248.67,248.6,22.19904503]
[1737214556831,0.75134593,248.7,248.6,22.19904503]
[1737214557027,0.75134593,248.7,248.62,22.19904503]
[1737214557336,22.19904503,248.75,248.64,22.19904503]
[1737214557541,0.75134593,248.74,248.64,22.19904503]
[1737214557723,0.75134593,248.74,248.68,22.19904503]
[1737214557921,26.97009096,248.77,248.66,22.19904503]
[1737214558123,22.19904503,248.73,248.64,22.19904503]
[1737214558330,22.19904503,248.71,248.62,22.19904503]
[1737214558529,0.75134593,248.7,248.62,22.19904503]
[1737214558834,0.75134593,248.7,248.64,22.19904503]
[1737214559018,0.75134593,248.72,248.64,22.19904503]
[1737214559420,0.75134593,248.74,248.64,22.19904503]
[1737214560333,22.19904503,248.73,248.64,22.19904503]
[1737214560527,0.75134593,248.72,248.64,22.19904503]
[1737214560839,6.3389,248.78,248.71,22.19904503]
[1737214561038,6.3389,248.78,248.57,0.063]
[1737214561039,0.75134593,248.87,248.8,20.0]
[1737214561250,0.03,248.97,248.89,20.0]
[1737214561420,0.03,248.97,248.9,0.60243379]
[1737214561721,0.03,248.97,248.89,20.0]
[1737214561722,0.03,248.97,248.84,1.606262]
[1737214561921,16.88804593,248.97,248.71,0.60274221]
[1737214562332,26.92934593,248.97,248.73,20.0]
[1737214562527,22.19904503,248.9,248.8,22.19904503]
[1737214562751,0.75134593,248.89,248.8,22.19904503]
[1737214562938,0.75134593,248.89,248.84,22.19904503]
[1737214563241,0.78134593,248.97,248.9,20.0]
[1737214563422,0.03,248.97,248.96,22.19904503]
[1737214564052,0.03,248.97,248.94,22.19904503]
[1737214564424,0.03,249.04,248.99,20.0]
[1737214564727,0.03,249.04,249.02,22.19904503]
[1737214564941,0.03,249.04,249.03,0.60225153]
[1737214565134,0.03,249.04,249.02,22.19904503]
[1737214565336,0.03,249.04,248.86,0.60225298]
[1737214565533,0.03,249.04,249.03,22.19904503]
[1737214566038,0.03,249.04,249.01,22.19904503]
[1737214566238,0.03,249.04,249.02,0.60232472]
[1737214566428,0.03,249.04,249.03,22.19904503]
[1737214567846,0.03,249.04,249.01,22.19904503]
[1737214568942,0.03,249.04,248.94,0.60230021]
[1737214569140,0.03,249.04,249.01,22.19904503]
[1737214569345,0.03,249.04,249.03,22.19904503]
[1737214570135,0.03,249.04,249.01,22.19904503]
[1737214570852,0.03,249.04,249.03,20.0]
[1737214571051,0.03,249.04,248.93,16.057549]
[1737214571248,22.19904503,248.96,248.86,22.19904503]
[1737214571453,22.19904503,249.03,248.92,22.19904503]
[1737214571624,0.75134593,249.02,248.92,22.19904503]
[1737214571823,0.03,249.04,248.94,22.19904503]
[1737214572021,0.03,249.11,249.03,34.28904503]
[1737214572234,0.03,249.11,249.1,22.19904503]
[1737214573548,0.03,249.22,249.1,22.19904503]
[1737214573743,0.03,249.36,249.21,44.39809006]
[1737214573944,0.03,249.36,249.35,22.19904503]
[1737214574446,0.03,249.36,249.25,16.037963]
[1737214574645,0.78134593,249.36,249.28,20.0]
[1737214574832,0.03,249.36,249.32,20.0]
[1737214575032,0.03,249.36,249.23,16.037963]
[1737214575234,22.19904503,249.35,249.28,20.0]
[1737214575433,0.03,249.36,249.32,22.19904503]
[1737214575639,0.03,249.36,249.33,0.60151832]
[1737214575839,0.03,249.36,249.34,22.19904503]
[1737214576546,0.03,249.36,249.35,0.60151279]
[1737214576737,0.03,249.36,249.35,0.60144675]
[1737214576938,0.03,249.36,249.34,22.19904503]
[1737214577138,0.03,249.36,249.35,0.60150526]
[1737214578341,0.03,249.36,249.35,22.19904503]
[1737214580027,0.03,249.36,249.35,22.80026902]
[1737214581150,0.03,249.36,249.35,22.19904503]
[1737214582047,0.03,249.48,249.38,20.0]
[1737214582252,0.03,249.48,249.47,22.19904503]
[1737214582854,0.03,249.48,249.43,22.19904503]
[1737214583032,0.03,249.48,249.47,22.19904503]
[1737214583449,0.03,249.48,249.47,22.80000745]
[1737214583754,0.03,249.48,249.45,22.19904503]
[1737214583955,0.03,249.48,249.47,20.0]
[1737214584456,0.03,249.48,249.47,22.19904503]
[1737214585280,0.03,249.48,249.45,22.19904503]
[1737214585440,0.03,249.48,249.43,22.19904503]
[1737214585636,0.03,249.48,249.44,0.60122977]
[1737214586143,0.03,249.48,249.45,22.19904503]
[1737214586348,0.03,249.48,249.46,0.60122928]
[1737214586541,0.03,249.48,249.45,42.19904503]
[1737214587358,0.03,249.48,249.38,22.19904503]
[1737214587540,22.98039096,249.48,249.39,0.6013495]
[1737214587938,0.75134593,249.47,249.39,0.6013495]
[1737214588255,0.03,249.48,249.39,0.6013495]
[1737214588553,0.03,249.48,249.41,20.0]
[1737214588861,0.03,249.48,249.42,0.60124304]
[1737214589038,0.03,249.48,249.43,20.0]
[1737214589765,0.03,249.48,249.44,0.60128314]
[1737214589970,0.03,249.48,249.43,19.95155995]
[1737214590141,0.03,249.48,249.44,0.60127646]
[1737214590643,0.03,249.48,249.44,0.60126275]
[1737214590849,0.03,249.48,249.43,20.55282285]
[1737214591044,0.03,249.48,249.3,22.19904503]
[1737214591045,22.22904503,249.48,249.41,0.60127167]
[1737214591251,22.22904503,249.48,249.38,0.60132097]
[1737214591459,13.53462568,249.48,249.38,14.10594665]
[1737214592161,0.03,249.48,249.41,20.0]
[1737214592341,0.03,249.48,249.43,20.0]
[1737214593044,0.03,249.48,249.45,20.0]
[1737214593464,0.03,249.48,249.47,20.0]
[1737214594053,0.03,249.48,249.46,13.50462568]
[1737214594364,0.03,249.48,249.47,0.601021]
[1737214596262,0.03,249.48,249.42,13.50462568]
[1737214596441,0.03,249.48,249.34,0.60114215]
[1737214596442,13.50462568,249.46,249.36,13.50462568]
[1737214596649,13.50462568,249.44,249.37,0.60134261]
[1737214596848,13.50462568,249.39,249.3,13.50462568]
[1737214597046,0.03,249.48,249.31,0.60146947]
[1737214597359,0.03,249.48,249.47,13.50462568]
[1737214597670,0.03,249.48,249.47,14.10551408]
[1737214598765,0.03,249.48,249.47,13.50462568]
[1737214599162,0.5,249.6,249.47,13.50462568]
[1737214599463,0.5,249.6,249.55,13.50462568]
[1737214599767,0.5,249.6,249.56,0.60087088]
[1737214599961,0.5,249.6,249.56,20.0]
[1737214600159,14.7558261,249.6,249.52,0.60096033]
[1737214600364,14.7558261,249.6,249.44,13.50462568]
[1737214600365,13.50462568,249.56,249.44,13.50462568]
[1737214600559,14.00462568,249.6,249.49,13.50462568]
[1737214600766,14.75594297,249.6,249.5,0.60105383]
[1737214601063,1.75129604,249.58,249.5,0.60105383]
[1737214601265,1.75129604,249.58,249.52,20.0]
[1737214601569,1.0,249.58,249.53,0.60107389]
[1737214601765,1.0,249.58,249.52,20.0]
[1737214602065,0.75130461,249.57,249.49,13.50462568]
[1737214602450,0.75130461,249.57,249.47,13.50462568]
[1737214602652,0.75130461,249.57,249.48,0.60113163]
[1737214602983,1.0,249.58,249.5,20.0]
[1737214603152,1.0,249.58,249.51,0.60105002]
[1737214603967,1.0,249.58,249.52,20.0]
[1737214604148,1.0,249.58,249.56,20.0]
[1737214604552,1.0,249.58,249.57,20.60100047]
[1737214604948,1.0,249.58,249.57,34.10562615]
[1737214605562,1.0,249.58,249.56,20.0]
[1737214605866,1.0,249.58,249.49,13.50462568]
[1737214606066,1.0,249.58,249.31,0.60098575]
[1737214606067,13.50462568,249.57,249.47,13.50462568]
[1737214606283,0.75134593,249.56,249.48,0.60114228]
[1737214606452,13.50462568,249.57,249.48,0.60114228]
[1737214606868,0.75134593,249.56,249.47,13.50462568]
[1737214607085,13.50462568,249.53,249.48,0.60109407]
[1737214607273,13.50462568,249.51,249.44,0.60127108]
[1737214607569,13.50462568,249.53,249.43,13.50462568]
[1737214607783,13.50462568,249.57,249.5,20.0]
[1737214607971,13.50462568,249.57,249.51,0.601061]
[1737214608162,1.0,249.58,249.5,20.0]
[1737214608361,1.0,249.58,249.52,20.0]
[1737214608561,1.03,249.58,249.54,20.0]
[1737214609171,1.03,249.58,249.51,13.50462568]
[1737214609379,1.03,249.58,249.52,0.60105594]
[1737214609558,1.03,249.58,249.52,20.60105594]
[1737214609763,1.03,249.58,249.52,0.60105594]
[1737214609963,1.03,249.58,249.5,0.60105334]
[1737214610465,1.03,249.58,249.53,13.50462568]
[1737214610673,1.03,249.58,249.54,0.60098174]
[1737214611774,1.03,249.58,249.54,20.0]
[1737214611979,1.03,249.58,249.54,20.60102405]
[1737214612171,1.03,249.58,249.55,13.50462568]
[1737214612474,1.03,249.58,249.57,13.50462568]
[1737214612861,1.03,249.58,249.53,13.50462568]
[1737214613273,1.03,249.58,249.49,14.10554971]
[1737214613274,14.53462568,249.58,249.49,14.10554971]
[1737214613481,13.50462568,249.56,249.46,13.50462568]
[1737214613663,0.75134593,249.55,249.46,13.50462568]